Cogmind - Beta 16.1 @@@ ROGUE MODE // 2026.02.26 @ 00:07:59 // Winter2019/RPGLIKE Player: FAQ Result: Self-destructed Performance ------------- Evolutions (2) 1000 Regions Visited (5) 1000 Robots Destroyed (41) 205 Value Destroyed (1168) 1168 Prototype IDs (25) 500 Alien Tech Used (0) 0 Bonus (25) 25 TOTAL SCORE: 3898 Bonus ------- Follower Combat Kills 25 Cogmind --------- Core Integrity 91/900 Matter 7/300 Energy 265/265 System Corruption 0% Temperature Warm (109) Movement Walking (120) Location -8/Materials Parts ------- > --- POWER (1) -------- Improved Ion Engine > --- PROPULSION (2) --- Aluminum Leg Improved Aluminum Leg > --- UTILITY (4) ------ Improved Signal Interpreter Seismic Detector Insulated Plating > --- WEAPON (2) ------- Light Cannon Battle Cannon > --- INVENTORY (3) ---- Core Analyzer Grenade Launcher Remote Datajack Peak State ------------ > --- POWER ------------ Light Ion Engine > --- PROPULSION ------- Aluminum Leg Aluminum Leg > --- UTILITY ---------- Seismic Detector Light Armor Plating Light Armor Plating > --- WEAPON ----------- YOLO Cannon > --- INVENTORY -------- Grenade Launcher Remote Datajack [Rating: 26] Favorites ----------- Power Light Ion Engine Engine Light Ion Engine Propulsion Aluminum Leg Leg Aluminum Leg Utility Seismic Detector Device Seismic Detector Processor Improved Signal Interpreter Protection Light Armor Plating Weapon Light Cannon Energy Gun Medium Laser Energy Cannon YOLO Cannon Ballistic Gun Light Assault Rifle Ballistic Cannon Light Cannon Launcher Grenade Launcher Special Weapon Remote Datajack Build | -11 -10 -10 -10 -9 -8 ------- Run | Yrd Mat Min Exi Min Mat Slots Evolved 5 | 3 . 1 . . 1 Power . | . . . . . . Propulsion 1 | 1 . . . . . Utility 3 | 1 . 1 . . 1 Weapon 1 | 1 . . . . . Parts Attached 20 | 7 3 1 3 4 2 Power 2 | 1 . . . 1 . Engine 2 | 1 . . . 1 . Core . | . . . . . . Reactor . | . . . . . . Propulsion 3 | 2 . . . 1 . Treads . | . . . . . . Leg 3 | 2 . . . 1 . Wheel . | . . . . . . Hover . | . . . . . . Flight . | . . . . . . Utility 7 | 2 1 . 1 1 2 Device 2 | 2 . . . . . Storage . | . . . . . . Processor 1 | . . . . . 1 Hackware . | . . . . . . Protection 4 | . 1 . 1 1 1 Artifact . | . . . . . . Weapon 8 | 2 2 1 2 1 . Energy Gun 1 | 1 . . . . . Energy Cannon 1 | . . . 1 . . Ballistic Gun 1 | 1 . . . . . Ballistic Cannon 3 | . 2 1 . . . Launcher 1 | . . . . 1 . Special Weapon 1 | . . . 1 . . Impact Weapon . | . . . . . . Slashing Weapon . | . . . . . . Piercing Weapon . | . . . . . . Special Melee Weapon . | . . . . . . Unidentified Prototypes 1 | . . . 1 . . Parts Lost 1 | . . . . . 1 Power . | . . . . . . Propulsion . | . . . . . . Utility 1 | . . . . . 1 Weapon . | . . . . . . Highest Loss Streak 1 | . . . . . 1 To Critical Strikes . | . . . . . . Average Backups 1 | . 1 2 2 2 2 Power . | . . . . . . Propulsion . | . . . . . . Utility . | . . 1 . . . Weapon . | . . 1 1 1 1 Tool/Special . | . . . . . . Unused Backups 2 | . 1 . . . 1 Power . | . . . . . . Propulsion . | . . . . . . Utility 1 | . . . . . 1 Weapon 1 | . 1 . . . . Tool/Special . | . . . . . . Average Slot Usage (%) 97 | . 99 87 96 100 96 Engine 12 | . 14 12 12 12 11 Leg 25 | . 28 25 25 25 23 Device 14 | . 19 12 12 12 11 Processor 1 | . . . . . 10 Protection 15 | . 8 12 22 25 16 Energy Gun 2 | . 7 . . . . Ballistic Cannon 22 | . 19 25 24 23 22 Peak Build Rating 26 | 9 9 8 26 12 17 Average Rating 9 | 5 7 7 8 11 15 On Entrance 7 | . 9 7 8 9 12 Avg Prop Armor Cover (%) . | . . . . . . Naked Turns . | . . . . . . Heaviest Build 24 | 8 13 13 16 24 24 Greatest Support 28 | 20 20 25 25 28 28 Greatest Overweight (x) . | . . . . . . Average Overweight (x) . | . . . . . . Largest Inventory Capacity 3 | 2 2 2 2 2 3 Average Capacity 2 | 2 2 2 2 2 2 Most Carried 3 | . 2 2 2 2 3 Average Carried 1 | . 1 2 1 2 2 Final Capacity 3 | 2 2 2 2 2 3 Final Carried 3 | . 2 2 2 2 3 Class Distribution -------------------- 66% | Mutant 15% | Hacker-Mutant 14% | Hacker-Skirmisher 3% | Commander-Mutant Dominant Class ---------------- Mutant | -10/Materials Mutant | -10/Mines Mutant | -10/Exiles Hacker-Mutant | -9/Mines Hacker-Skirmisher | -8/Materials Resources | -11 -10 -10 -10 -9 -8 ----------- Run | Yrd Mat Min Exi Min Mat Matter Collected 1337 | 280 190 110 44 487 226 Remotely . | . . . . . . Salvage Created 1039 | 94 360 98 31 216 240 Parts 62 | 4 19 2 4 18 15 Haulers Intercepted 2 | . 2 . . . . Recyclers Shooed 1 | . . . . . 1 Parts Field Recycled . | . . . . . . Retrieved Matter . | . . . . . . Parts Self-Destructed . | . . . . . . Prevented . | . . . . . . Parts Restored . | . . . . . . Kills | -11 -10 -10 -10 -9 -8 ------- Run | Yrd Mat Min Exi Min Mat Combat Hostiles Destroyed 42 | . 8 2 . 22 10 Guns 1 | . 1 . . . . Cannons 23 | . 7 2 . 10 4 AOE 18 | . . . . 12 6 Classes Destroyed 13 | 2 5 . . 4 2 Worker 2 | . . . . 1 1 Builder 3 | . 1 . . . 2 Tunneler 2 | 2 . . . . . Hauler 2 | . 2 . . . . Recycler 2 | 1 . . . . 1 Watcher 2 | . 2 . . . . Swarmer 6 | . 3 . . 3 . Grunt 17 | . 5 2 . 3 7 Duelist 1 | . . . . 1 . Sentry 1 | . . . . . 1 Demolisher 1 | . . . . 1 . Hunter 2 | . . . . . 2 Assembled 14 | . . . . 14 . Best Kill Streak 16 | 2 4 2 . 16 6 Combat Bots Only 15 | . 3 2 . 15 3 Max Kills in Single Turn 3 | 1 1 1 . 3 3 Gunslinging . | . . . . . . Exploded 3 | . . . . 3 2 Melee . | . . . . . . Uniques/NPCs Destroyed . | . . . . . . Combat | -11 -10 -10 -10 -9 -8 -------- Run | Yrd Mat Min Exi Min Mat Hostile Shots Fired 202 | . 25 10 . 62 105 Missed 58 | . 5 1 . 16 36 Hits 144 | . 20 9 . 46 69 Melee 2 | . . . . 2 . Projectile 142 | . 20 9 . 44 69 AOE 4 | . . . . 4 . Critical Strikes 5 | . . . . 1 4 Damage Taken 2103 | . 176 116 . 747 1064 Core 1459 | . 149 78 . 502 730 Absorbed by Shields . | . . . . . . Redirected to Core 1208 | . 92 78 . 406 632 Ignored by Resistances 211 | . 20 9 . 54 128 Core Remaining (%) 77 | 100 . . . 55 . Volleys Fired 163 | 23 41 6 16 39 38 Largest 2 | 2 2 2 2 2 2 Hottest 80 | 70 80 63 63 63 63 Shots Fired 292 | 46 81 12 28 60 65 Gun 80 | 46 34 . . . . Cannon 186 | . 47 12 24 49 54 Launcher 22 | . . . . 11 11 Special 4 | . . . 4 . . Kinetic 214 | 23 52 12 24 49 54 Thermal 52 | 23 29 . . . . Explosive 22 | . . . . 11 11 Electromagnetic . | . . . . . . Robot Hit Streak 9 | 5 9 1 5 3 6 Robot Miss Streak 6 | 5 5 2 3 4 6 Penetration Max . | . . . . . . Secondary Targets . | . . . . . . Shots Hit Robots 133 | 23 40 4 13 22 31 Core Hits 107 | 6 16 3 7 34 41 Critical Kills . | . . . . . . Critical Parts Destroyed . | . . . . . . Critical Strikes 6 | 2 2 . . 2 . Burn 4 | 2 2 . . . . Blast 2 | . . . . 2 . Melee Attacks . | . . . . . . Impact . | . . . . . . Slashing . | . . . . . . Piercing . | . . . . . . Sneak Attacks . | . . . . . . Combat Hostiles . | . . . . . . Follow-up Attacks . | . . . . . . Damage Inflicted 3932 | 250 606 85 287 1123 1581 Guns 434 | 250 184 . . . . Cannons 1687 | . 422 85 287 389 504 Explosions 1789 | . . . . 734 1055 Melee . | . . . . . . Ramming 22 | . . . . . 22 Kinetic 1822 | 100 457 85 287 389 504 Thermal 299 | 150 149 . . . . Explosive 1789 | . . . . 734 1055 Electromagnetic . | . . . . . . Impact . | . . . . . . Slashing . | . . . . . . Piercing . | . . . . . . Highest Corruption . | . . . . . . Average Corruption . | . . . . . . Corruption Purged . | . . . . . . Corruption Blocked . | . . . . . . Overload Shots . | . . . . . . Overflow Damage 35 | . 18 . . 9 8 Projectiles 35 | . 18 . . 9 8 Explosions . | . . . . . . Melee . | . . . . . . Knockbacks 15 | . 1 . 4 3 7 Impact . | . . . . . . Kinetic 14 | . 1 . 3 3 7 Secondary 1 | . . . 1 . . Self-Inflicted Damage 42 | . . . . 42 . Shots 2 | . . . . 2 . Rammed . | . . . . . . Targets Rammed 9 | . . . . . 9 Kicked 9 | . . . . . 9 Crushed . | . . . . . . Highest Temperature 331 | 180 126 141 160 252 331 Average Temperature 75 | 63 39 74 76 102 86 Received Heat Transfer 831 | . 48 69 . 111 603 Effects 1 | . . . . 1 . Energy Bleed 1 | . . . . 1 . Siege Activations . | . . . . . . Martial Activations . | . . . . . . Shielding Activations . | . . . . . . Robots Disrupted . | . . . . . . Combat Hostiles . | . . . . . . Robots Corrupted . | . . . . . . Combat Hostiles . | . . . . . . Parts Fried . | . . . . . . Impact Corruptions . | . . . . . . Robots Melted . | . . . . . . Combat Hostiles . | . . . . . . Parts Melted . | . . . . . . Heat Transferred 1184 | 592 592 . . . . Parts Sabotaged . | . . . . . . Parts Stolen . | . . . . . . Parts Stripped . | . . . . . . Power Chain Reactions . | . . . . . . Alert | -11 -10 -10 -10 -9 -8 ------- Run | Yrd Mat Min Exi Min Mat Maximum Alert Level 1 | . . . . . 1 Low Security (%) 91 | 100 100 100 . 100 56 Level 1 8 | . . . . . 43 Level 2 . | . . . . . . Level 3 . | . . . . . . Level 4 . | . . . . . . Level 5 . | . . . . . . High Security . | . . . . . . Max Security . | . . . . . . Peak Influence 275 | 5 71 52 . 145 275 Initial 14 | . . . . . 14 Average 45 | . 14 13 . 41 153 Influence Increases 1109 | 15 255 53 5 308 473 Destroy 0b10 Robot/C 580 | . 160 40 . 180 200 Destroy 0b10 Robot/NC 75 | 15 25 . 5 10 20 Destroy Leader 148 | . 48 10 . 40 50 Allied During Kill 30 | . . . . 30 . Successful Hack 43 | . 20 . . . 23 Disable Machine 75 | . . . . . 75 Destroy Structure 83 | . 2 3 . 33 45 Lose Combat Pursuer 75 | . . . . 15 60 Influence Decreases 877 | 15 255 51 7 270 279 Entered New Map 26 | . . . 2 . 24 Time Decay 761 | 15 255 51 5 190 245 Lost Part 10 | . . . . . 10 Lost Ally 80 | . . . . 80 . Squads Dispatched 3 | . 1 . . . 2 Investigation . | . . . . . . Extermination . | . . . . . . Reinforcement 3 | . 1 . . . 2 Assault . | . . . . . . Garrison . | . . . . . . Intercept . | . . . . . . Searches Triggered . | . . . . . . Construction Impeded 1 | . . . . . 1 Haulers Reinforced . | . . . . . . Active Scanning Responses . | . . . . . . Cargo Convoy Interrupts . | . . . . . . Stealth | -11 -10 -10 -10 -9 -8 --------- Run | Yrd Mat Min Exi Min Mat Distress Signals 6 | . . . . . 6 Communications Jammed . | . . . . . . Distress Signals . | . . . . . . Times Spotted 84 | . 17 2 . 31 34 Peak Tracking Total 7 | . 3 2 . 7 7 Tactical Retreats 3 | . . . . 1 2 Traps | -11 -10 -10 -10 -9 -8 ------- Run | Yrd Mat Min Exi Min Mat Traps Triggered 1 | . . . . . 1 Indirectly . | . . . . . . Trap Hack Attempts . | . . . . . . Triggered . | . . . . . . Disarmed . | . . . . . . Reprogrammed . | . . . . . . Reused . | . . . . . . Traps Extracted . | . . . . . . Installed . | . . . . . . Triggered . | . . . . . . Machines | -11 -10 -10 -10 -9 -8 ---------- Run | Yrd Mat Min Exi Min Mat Machines Disabled 5 | . . . . . 5 Max in Single Turn 1 | . . . . . 1 Machines Repaired . | . . . . . . Machines Dismantled . | . . . . . . Machines Sabotaged . | . . . . . . Overloaded Fab Kills . | . . . . . . Hacking | -11 -10 -10 -10 -9 -8 --------- Run | Yrd Mat Min Exi Min Mat Machines Accessed 10 | . 5 . 2 . 3 Terminals 8 | . 5 . . . 3 Fabricators . | . . . . . . Repair Stations . | . . . . . . Recycling Units . | . . . . . . Scanalyzers . | . . . . . . Garrison Access . | . . . . . . Total Hacks 44 | . 23 . 3 . 18 Successful 31 | . 18 . 3 . 10 Failed 13 | . 5 . . . 8 Catastrophic 1 | . . . . . 1 Database Lockouts . | . . . . . . Manual 37 | . 20 . 1 . 16 Terminals 41 | . 23 . . . 18 Fabricators . | . . . . . . Repair Stations . | . . . . . . Recycling Units . | . . . . . . Scanalyzers . | . . . . . . Garrison Access . | . . . . . . Terminal Hacks 16 | . 8 . 3 . 5 Record 3 | . 1 . 2 . . Robot Analysis 2 | . 2 . . . . Prototype ID Bank 1 | . 1 . . . . Level Access Points 1 | . . . . . 1 Terminal Index 1 | . 1 . . . . Alert Level 1 | . . . . . 1 Dispatch Records 1 | . 1 . . . . Recall Investigation 1 | . . . . . 1 Hauler Manifests 1 | . 1 . . . . Registered Components 2 | . 1 . . . 1 Zone Layout 1 | . . . . . 1 Proto ID Catalog 1 | . . . 1 . . Fabricator Hacks . | . . . . . . Repair Station Hacks . | . . . . . . Recycling Unit Hacks . | . . . . . . Scanalyzer . | . . . . . . Garrison Access Hacks . | . . . . . . Unauthorized Hacks 15 | . 10 . . . 5 Terminals 15 | . 10 . . . 5 Botnet 8 | . 5 . . . 3 Skim 7 | . 5 . . . 2 Fabricators . | . . . . . . Repair Stations . | . . . . . . Recycling Units . | . . . . . . Scanalyzers . | . . . . . . Garrison Access . | . . . . . . Data Cores Recovered . | . . . . . . Used . | . . . . . . Hacking Detections 5 | . 3 . . . 2 Full Trace Events . | . . . . . . Feedback Events . | . . . . . . Feedback Blocked . | . . . . . . Robot Schematics Acquired . | . . . . . . Robots Built . | . . . . . . Authchips . | . . . . . . Time . | . . . . . . Total Robot Build Rating . | . . . . . . Part Schematics Acquired . | . . . . . . Parts Built . | . . . . . . Authchips . | . . . . . . Time . | . . . . . . Total Part Build Rating . | . . . . . . Part Studies Acquired . | . . . . . . Parts Repaired . | . . . . . . Time . | . . . . . . Parts Recycled . | . . . . . . Recycled Matter . | . . . . . . Retrieved Matter . | . . . . . . Retrieved Components . | . . . . . . Parts Scanalyzed . | . . . . . . Part Schematics Acquired . | . . . . . . Parts Damaged . | . . . . . . Bothacking | -11 -10 -10 -10 -9 -8 ------------ Run | Yrd Mat Min Exi Min Mat Used RIF Installer . | . . . . . . Robots Hacked . | . . . . . . Non-combat . | . . . . . . Combat . | . . . . . . Robot Hacks Applied . | . . . . . . Relay Couplers Released . | . . . . . . Fabnet Peak Effective % . | . . . . . . Robots Rewired 4 | . . . 4 . . Allies Hacked . | . . . . . . Hacks Repelled . | . . . . . . Allies | -11 -10 -10 -10 -9 -8 -------- Run | Yrd Mat Min Exi Min Mat Total Allies 4 | . . . 4 . . Largest Group 4 | . . . 4 4 . Highest-Rated Group 58 | . . . 58 58 . Highest-Rated Ally 21 | . . . 21 21 . Total Orders . | . . . . . . Ally Attacks 19 | . . . . 19 . Total Damage 362 | . . . . 362 . Kills 5 | . . . . 5 . Allies Corrupted . | . . . . . . Allies Melted . | . . . . . . Intel | -11 -10 -10 -10 -9 -8 ------- Run | Yrd Mat Min Exi Min Mat Active Infowar (turns) 3289 | 87 1287 230 564 597 524 Terrain 510 | 11 499 . . . . Seismic 3289 | 87 1287 230 564 597 524 Robot Analysis Total 2 | . 2 . . . . Derelict Logs Recovered 3 | . . 1 . 2 . Drone Launches . | . . . . . . Drone Recoveries . | . . . . . . Exploration | -11 -10 -10 -10 -9 -8 ------------- Run | Yrd Mat Min Exi Min Mat Turns Passed 3363 | 161 1287 230 564 597 524 Spaces Moved 1870 | 76 528 172 409 394 291 Core 7 | 7 . . . . . Treads . | . . . . . . Legs 1863 | 69 528 172 409 394 291 Wheels . | . . . . . . Hover . | . . . . . . Flight . | . . . . . . Fastest Speed 50 | 50 120 120 120 120 120 Average Speed 119 | 113 120 120 120 120 120 Slowest Speed 120 | 120 120 120 120 120 120 Overloaded Moves . | . . . . . . Propulsion Burnouts . | . . . . . . Robots Hopped . | . . . . . . Potential Cave-ins . | . . . . . . Cave-ins Triggered . | . . . . . . Exploration Rate (%) 52 | 6 73 30 89 90 25 Regions Visited 5 Branch Regions 3 Pre-discovered Areas 3 | . 1 . 1 1 . Known Exits Taken 3 | . 1 1 1 . . Unknown Exits Taken 2 | 1 . . . 1 . Scrap Searched 3 | . . 1 . 2 . Spaces Dug . | . . . . . . Terrain Destroyed 113 | . . 3 1 65 44 Melee . | . . . . . . Projectile 15 | . . 3 1 9 2 AOE 98 | . . . . 56 42 Terrain Rammed . | . . . . . . Walls Destroyed . | . . . . . . Machines Disabled . | . . . . . . Actions | -11 -10 -10 -10 -9 -8 --------- Run | Yrd Mat Min Exi Min Mat Total 2699 | 106 1103 184 455 455 396 Wait 557 | 1 516 5 3 2 30 Move 1865 | 75 527 171 408 393 291 Hop . | . . . . . . Pick Up 7 | . 4 . 1 . 2 Fast Attach 15 | 7 2 . 3 1 2 Attach 3 | . 1 . 1 . 1 Detach 2 | . 1 . . . 1 Swap 20 | . . 1 2 10 7 Drop 13 | . 4 1 3 3 2 Fire 163 | 23 41 6 16 39 38 Melee . | . . . . . . Ram . | . . . . . . Kick 9 | . . . . . 9 Crush . | . . . . . . Escape Stasis . | . . . . . . Rewire 10 | . . . 10 . . Trap . | . . . . . . Miscellaneous 35 | . 7 . 8 7 13 Route ------- -11/Scrapyard -10/Materials (discovered 6 exits: *Mat x3 / *Min x2 / Sub) -10/Mines -10/Exiles (discovered 2 exits: *Min x2) -9/Mines -8/Materials (discovered 3 exits: Fac x3) History --------- Turn | Location | Event 1 | -11/Scrapyard | Upgraded with Propulsion slot (x1) 1 | -11/Scrapyard | Upgraded with Utility slot (x1) 1 | -11/Scrapyard | Upgraded with Weapon slot (x1) 3 | -11/Scrapyard | Discovered new exit (range 15) 162 | -11/Scrapyard | Entered Materials 306 | -10/Materials | Build established: Mutant 407 | -10/Materials | Discovered new exit (range 10) 588 | -10/Materials | Discovered new exit (range 12) 787 | -10/Materials | Discovered new exit (range 9) 873 | -10/Materials | Learned Storage stockpile data 1016 | -10/Materials | Identified exit to Mines 1072 | -10/Materials | Identified exit to Subcaves 1072 | -10/Materials | Identified exit to Materials 1072 | -10/Materials | Learned location of 1 exit from Materials 1229 | -10/Materials | Learned 4 Materials zone layouts 1343 | -10/Materials | Learned location of 2 exits from Materials 1418 | -10/Materials | Loaded intel: 17 trap records 1449 | -10/Materials | Entered Mines 1451 | -10/Mines | Reached level 2 1455 | -10/Mines | Upgraded with Utility slot (x1) 1494 | -10/Mines | Identified exit to Exiles 1512 | -10/Mines | A weapon hastily lodged in a ceiling crevice suddenly fell to the ground 1642 | -10/Mines | Deemed a non-threat by the Exiles lab entrance 1679 | -10/Mines | Entered Exiles 1679 | -10/Exiles | Found Exiles lab destroyed 1680 | -10/Exiles | Identified exit to Mines 1893 | -10/Exiles | Opened EX-Vault 1901 | -10/Exiles | Found Prototype Energy Cannon 1901 | -10/Exiles | Identified YOLO Cannon 2173 | -10/Exiles | Learned location of Zion (-7) 2223 | -10/Exiles | Discovered exit to Mines (range 15) 2243 | -10/Exiles | Entered Mines 2243 | -9/Mines | Accompanied by 4 allies 2321 | -9/Mines | Reached level 3 2339 | -9/Mines | Assembled infested the area 2391 | -9/Mines | Core integrity fell below 50% 2396 | -9/Mines | Lost 4 allies 2456 | -9/Mines | Destroyed 15 combat bots 2642 | -9/Mines | Build established: Hacker-Mutant 2736 | -9/Mines | Learned location of Storage (-7) 2809 | -9/Mines | Discovered new exit (range 11) 2829 | -9/Mines | Learned Materials stockpile data 2840 | -9/Mines | Entered Materials 2841 | -8/Materials | Identified exit to Factory 2842 | -8/Materials | Reached level 4 3031 | -8/Materials | Reached level 5 3033 | -8/Materials | Upgraded with Utility slot (x1) 3143 | -8/Materials | Build established: Hacker-Skirmisher 3182 | -8/Materials | Core integrity fell below 50% 3331 | -8/Materials | Core integrity fell below 20% 3364 | -8/Materials | Self-destructed Last Messages --------------- 03269_ U-05 Engineer builds a Door. 03275_ Critical hit (Burn: +37). 03279_ Triggered EMP Trap. 03279_ A bubble of electromagnetic force engulfs the area. 03283_ Critical hit (Burn: +37). 03286_ U-05 Engineer lays Concrete. [internal `msg] 03329_ Acquired 4 matter. 03331_ Acquired 1 matter. 03335_ Kicked U-05 Engineer. 03342_ K-01 Serf cleans the Terminal. 03346_ K-01 Serf collects debris. 03349_ Dropped Lgt. Cannon. 03349_ W-25 Informer sends out distress signal. 03350_ K-01 Serf cleans the Terminal. 03350_ Acquired Lgt. Cannon. 03353_ G-47 Trooper knocked back. 03355_ K-01 Serf cleans the Terminal. 03356_ G-47 Trooper knocked back. 03363_ Kicked G-47 Trooper. Map ----- +----------------------------------------------------+ | ???? ??????????????????????????????????????????? | | ?""" ??????????????????????????????????????????? | | """ ??????????????????????????????????????????? | | """ ??????????????????????????????????????????? | | ? ??????????????????????????????????????????? | | ?? ??????????????????????????????????????????? | | ???! ###???????????????? ?????????????????????? | | ???? #???????????????? ?????????????????????? | | ????? #???????????????+ #????????????????????? | | ?????? #???????????????# #????????????????????? | | ??????# #???????????????# ############?????????? | | ??????# #?#######???????# ## #?????????? | | ??????# ### ! ! #???????# ## #?????????? | | [?????# ## #???????# ## """ """ #?????????? | | ??????# + #???????# ## """ """ #?????????? | | ??????# ## #???????# ## """ """ #?????????? | | ??????# ## #???????# ## % #?????????? | | ####### ## #???###?# ## #?????????? | | """" # ## #??## ### ## #?????????# | | """" # ###+########## ###+################# | | """" # % %" | | + % " | | # kg% w | | # ##########+### #####[############### | | ! # #??# ###g#######+# ######?????## | | # #??# "" # @ #??????????# | | ####### ##?# """ Y" # T ^""" """ #??????????# | | ###### #?# """ "" # """ """ #??????????# | | ! #?# """ # """ """ #?????????# | | ! #?# # ^ ##?????????# | | #?# # #########??# | | ##+### #?# ###########+####!!!![[#??# | | ########?############ # #??#! !![[#??# | | #???????????????????# """ # #??# #### | | #???????????????????# """"" # #### ##### | | #???????????????????# """"" # ^ | | ! #???????????????????# """" + | | #???????????????????# "" # | | #####???????????????????# ######## ###### | | ????????????????????????# ########% # ##? | | ????????????????????????# # # ###### | | ????????????????????????#####+#### # # | | ??????????????????????????? #?# # #"" | | ????????????????????????? #?# """ + #"T | | ???????????????????????? #?# """ # # " | | ??????????????????????T #?# """ # + | | ????????????????????? ##?# # # | | ???????????????????? #??# # ###### | | ???????????????????# #??######## # | | ???????????????????# #??# # # = | +----------------------------------------------------+ Best States ------------- Heat Dissipation 25 Energy Generation 12 Energy Capacity 265 Matter Stores 300 Matter Capacity 300 Sight Range 18 Robot Scan Range 10 Terrain Scan Range 16 Terrain Scan Density 10 Armor Coverage 375 Resistance: KI 5 Resistance: TH 10 Resistance: EX 5 Resistance: EM 15 Evasion (%) 55 Offensive Hacking 10 Defensive Hacking 10 Item Schematics ----------------- None Robot Schematics ------------------ None Fabricated ------------ Nothing Repaired ---------- Nothing Studied --------- None Alien Tech Used ----------------- None Achievements -------------- None Challenges ------------ None RPGLIKE | -11 -10 -10 -10 -9 -8 --------- Run | Yrd Mat Min Exi Min Mat Levels Raised 4 | . . 1 . 1 2 XP Earned 9887 | 3000 1035 750 200 1682 3220 XP Spent 9000 | 3000 . 1500 . 1360 3140 Upgrades 32 | 10 . 4 . 11 7 Propulsion Slot 1 | 1 . . . . . Utility Slot 3 | 1 . 1 . . 1 Weapon Slot 1 | 1 . . . . . Core Integrity 6 | . . . . 4 2 Mass Support 1 | . . 1 . . . Inventory Capacity 3 | 2 . . . . 1 Sight Range 2 | . . 1 . . 1 Sensor Range 5 | 1 . . . 4 . Hack Attack % 2 | 1 . . . 1 . Hack Defense % 2 | 1 . 1 . . . KI Resistance % 1 | 1 . . . . . TH Resistance % 2 | 1 . . . . 1 EX Resistance % 1 | . . . . 1 . KI Damage % 2 | . . . . 1 1 Protomatter Created 253 | . 52 . 50 59 92 Integrity Restored 693 | . 129 . 141 147 276 Core 650 | . 129 . 98 147 276 Parts 43 | . . . 43 . . Protomatter Decayed 15 | . 9 . . 6 . Game ------ Seed ReinforcedBeamFist Manual? 0 Play Time 00:26:10 Cumulative 56.6 hours Start 2026.02.25 @ 23:44:54 End 2026.02.26 @ 00:07:59 Sessions 1 Manual Loads 0 Difficulty Rogue Special Mode Winter2019/RPGLIKE Game No. 95 Rogue 95 Adventurer 0 Explorer 0 Win Type - Total 0 Types 0/0/0/0/0/0/0/0/0/0 Lore% 32 Gallery% 38 Achievement% 29 Wizard Run 0 Options --------- Layout 0 ASCII 1 Keyboard 1 Movement Numpad Keybinds 0 Fullscreen 1 Font 18/VGA_Max Map View 76x50 Zoom Use 0% Tactical HUD 1 Map Filters NONE Filters NONE Steam 1 RUN: 6f0d27f2-88fb-497d-a4e5-886678d2faaf